Cogmind - Beta 15 @@@ ROGUE MODE // 2025.07.18 @ 13:03:57 Player: cingulata Result: Self-destructed Performance ------------- Evolutions (2) 1000 Regions Visited (4) 800 Robots Destroyed (65) 325 Value Destroyed (1262) 1262 Prototype IDs (12) 240 Alien Tech Used (0) 0 Bonus (120) 120 TOTAL SCORE: 3747 Bonus ------- Follower Combat Kills 120 Cogmind --------- Core Integrity 435/550 Matter 187/300 Energy 275/275 System Corruption 0% Temperature Cool (0) Movement Treading (170) Location -8/Materials Parts ------- > --- POWER (1) -------- Deuterium Engine > --- PROPULSION (3) --- Armored Treads Armored Treads Armored Treads > --- UTILITY (5) ------ Large Storage Unit Advanced Visual Processing Unit Seismic Detector Hacking Suite System Shield > --- WEAPON (2) ------- Heavy Assault Rifle Ripper > --- INVENTORY (15) --- Light Deuterium Engine Light Nuclear Core Light Nuclear Core Armored Treads Armored Treads Large Storage Unit Structural Scanner Utility Shielding Light Armor Plating Light Armor Plating Improved Light Armor Plating Minigun Minigun Minigun Peak State ------------ > --- POWER ------------ Deuterium Engine > --- PROPULSION ------- Armored Treads Armored Treads Armored Treads > --- UTILITY ---------- Large Storage Unit Advanced Visual Processing Unit Seismic Detector Hacking Suite System Shield > --- WEAPON ----------- Minigun Ripper > --- INVENTORY -------- Light Nuclear Core Light Nuclear Core Armored Treads Structural Scanner Utility Shielding Light Armor Plating Light Armor Plating Improved Light Armor Plating Heavy Assault Rifle Minigun Minigun Flak Gun Rocket Launcher [Rating: 33] Favorites ----------- Power Light Ion Engine Engine Light Ion Engine Propulsion Light Treads Treads Light Treads Leg Aluminum Leg Wheel Wheel Flight Unit Improved VTOL Module Utility Large Storage Unit Device Seismic Detector Storage Large Storage Unit Processor Advanced Visual Processing Unit Hackware Hacking Suite Protection Light Armor Plating Weapon Heavy Assault Rifle Energy Gun Medium Laser Ballistic Gun Heavy Assault Rifle Launcher Rocket Launcher Impact Weapon Heavy Hammer Slashing Weapon Ripper Build | -11 -10 -10 -10 -8 ------- Run | Yrd Mat Min Sub Mat Slots Evolved 4 | . . . . 4 Power . | . . . . . Propulsion 1 | . . . . 1 Utility 3 | . . . . 3 Weapon . | . . . . . Parts Attached 42 | 2 12 2 7 19 Power 4 | . 1 1 1 1 Engine 4 | . 1 1 1 1 Core . | . . . . . Reactor . | . . . . . Propulsion 13 | 1 1 1 3 7 Treads 9 | . . 1 2 6 Leg . | . . . . . Wheel 3 | 1 1 . 1 . Hover . | . . . . . Flight 1 | . . . . 1 Utility 15 | 1 5 . 1 8 Device 2 | 1 1 . . . Storage 3 | . 2 . . 1 Processor 2 | . 1 . . 1 Hackware 2 | . . . . 2 Protection 6 | . 1 . 1 4 Artifact . | . . . . . Weapon 10 | . 5 . 2 3 Energy Gun . | . . . . . Energy Cannon . | . . . . . Ballistic Gun 7 | . 4 . . 3 Ballistic Cannon . | . . . . . Launcher 1 | . . . 1 . Special Weapon . | . . . . . Impact Weapon 1 | . 1 . . . Slashing Weapon 1 | . . . 1 . Piercing Weapon . | . . . . . Special Melee Weapon . | . . . . . Unidentified Prototypes 1 | . . . . 1 Parts Lost . | . . . . . Power . | . . . . . Propulsion . | . . . . . Utility . | . . . . . Weapon . | . . . . . Highest Loss Streak . | . . . . . To Critical Strikes . | . . . . . Average Backups 14 | 6 13 14 15 13 Power 1 | 1 1 1 1 1 Propulsion 3 | 4 3 3 4 2 Utility 4 | . 2 5 6 5 Weapon 4 | 1 4 4 4 3 Tool/Special . | . . . . . Unused Backups 23 | 7 5 2 . 9 Power 3 | 1 . . . 2 Propulsion 9 | 3 3 . . 3 Utility 4 | 1 . . . 3 Weapon 6 | 2 2 1 . 1 Tool/Special 1 | . . 1 . . Average Slot Usage (%) 99 | . 99 100 100 99 Engine 12 | . 14 14 14 9 Treads 14 | . . 8 19 23 Leg 4 | . 14 5 . . Wheel 8 | . 14 14 8 3 Device 8 | . 8 13 7 5 Storage 13 | . 18 14 14 9 Processor 2 | . 1 . . 7 Hackware 6 | . . . . 17 Protection 3 | . . . 6 4 Ballistic Gun 18 | . 19 28 16 13 Impact Weapon 3 | . 6 . 7 . Slashing Weapon 1 | . . . 1 4 Peak Build Rating 33 | 7 11 12 15 33 Average Rating 17 | 6 10 11 12 29 On Entrance 10 | 6 7 11 12 15 Naked Turns . | . . . . . Heaviest Build 49 | 12 49 30 34 39 Greatest Support 60 | 20 10 10 40 60 Greatest Overweight (x) 12 | 1 4 2 3 12 Average Overweight (x) 1 | . 2 2 1 . Largest Inventory Capacity 15 | 8 15 15 15 15 Average Capacity 14 | 8 14 15 15 15 Most Carried 15 | 6 15 15 15 15 Average Carried 14 | 5 13 14 15 13 Final Capacity 15 | 8 15 15 15 15 Final Carried 15 | 6 15 15 15 14 Class Distribution -------------------- 65% | Mutant 34% | Hacker-Mutant Dominant Class ---------------- Mutant | -10/Materials Mutant | -10/Mines Mutant | -10/Subcaves Hacker-Mutant | -8/Materials Resources | -11 -10 -10 -10 -8 ----------- Run | Yrd Mat Min Sub Mat Matter Collected 2048 | 234 380 195 256 983 Remotely . | . . . . . Salvage Created 1818 | 73 370 228 117 1030 Parts 132 | 12 31 18 9 62 Haulers Intercepted 4 | . 2 . . 2 Recyclers Shooed 3 | 1 . 1 . 1 Parts Field Recycled . | . . . . . Retrieved Matter . | . . . . . Parts Self-Destructed 9 | . . . 9 . Prevented . | . . . . . Kills | -11 -10 -10 -10 -8 ------- Run | Yrd Mat Min Sub Mat Combat Hostiles Destroyed 42 | . 9 6 6 21 Melee 3 | . . . . 3 Guns 34 | . 9 6 2 17 AOE 5 | . . . 4 1 Classes Destroyed 12 | 1 5 1 3 2 Worker 3 | . . . . 3 Builder 1 | . . . . 1 Tunneler 5 | 4 . 1 . . Hauler 4 | . 2 . . 2 Recycler 4 | . . 2 . 2 Operator 1 | . 1 . . . Turret 1 | . . . 1 . Watcher 4 | . 2 . . 2 Swarmer 24 | . 6 6 3 9 Grunt 11 | . 3 . . 8 Sentry 5 | . . . 1 4 Subdweller 2 | . . . 2 . Best Kill Streak 6 | 3 4 3 2 6 Combat Bots Only 3 | . 3 2 2 3 Max Kills in Single Turn 2 | 1 1 1 2 2 Gunslinging 1 | . . . . 1 Exploded 2 | . . . 2 1 Melee 1 | . . . . 1 Uniques/NPCs Destroyed . | . . . . . Combat | -11 -10 -10 -10 -8 -------- Run | Yrd Mat Min Sub Mat Hostile Shots Fired 238 | . 37 18 51 132 Missed 58 | . 11 7 14 26 Hits 180 | . 26 11 37 106 Projectile 180 | . 26 11 37 106 Critical Strikes 6 | . 1 . 1 4 Damage Taken 2103 | . 280 87 468 1268 Core 237 | . 56 10 56 115 Absorbed by Shields . | . . . . . Regen/Repaired (Parts) 43 | . 43 . . . Core Remaining (%) 75 | 100 . . 51 . Volleys Fired 170 | 14 39 22 20 75 Largest 2 | 2 2 2 2 2 Hottest 70 | 70 46 46 56 50 Shots Fired 301 | 28 62 45 27 139 Gun 283 | 28 62 45 11 137 Cannon . | . . . . . Launcher 18 | . . . 16 2 Special . | . . . . . Kinetic 269 | 14 62 45 11 137 Thermal 14 | 14 . . . . Explosive 18 | . . . 16 2 Electromagnetic . | . . . . . Robot Hit Streak 17 | 11 6 5 9 17 Robot Miss Streak 7 | 2 4 7 1 5 Penetration Max . | . . . . . Secondary Targets 4 | . . . . 4 Max Gunslinging Chain 1 | . . . . 1 Shots Hit Robots 197 | 20 32 21 14 110 Core Hits 93 | 8 16 10 17 42 Critical Kills 1 | . 1 . . . Critical Parts Destroyed 1 | . . . . 1 Critical Strikes 6 | 1 1 . . 4 Burn 1 | 1 . . . . Destroy 2 | . . . . 2 Smash 1 | . 1 . . . Sever 2 | . . . . 2 Melee Attacks 70 | . 20 . 16 34 Impact 35 | . 20 . 15 . Slashing 35 | . . . 1 34 Piercing . | . . . . . Sneak Attacks 11 | . 2 . . 9 Combat Hostiles 1 | . . . . 1 Follow-up Attacks . | . . . . . Damage Inflicted 4774 | 214 719 325 676 2840 Guns 2624 | 214 448 323 123 1516 Cannons . | . . . . . Explosions 619 | . . . 451 168 Melee 1529 | . 271 . 102 1156 Ramming 2 | . . 2 . . Kinetic 2486 | 76 448 323 123 1516 Thermal 138 | 138 . . . . Explosive 619 | . . . 451 168 Electromagnetic . | . . . . . Impact 318 | . 271 . 47 . Slashing 1211 | . . . 55 1156 Piercing . | . . . . . Highest Corruption 2 | . 2 2 2 . Average Corruption 2 | . 2 2 2 . Corruption Purged . | . . . . . Corruption Blocked . | . . . . . Effects 33 | . 3 8 22 . Message Errors 10 | . 2 1 7 . Matter Fused 5 | . . 1 4 . Heat Flow Errors 3 | . . 2 1 . Energy Discharges 5 | . . 2 3 . Data Loss (minor) 5 | . 1 . 4 . Data Loss (major) 3 | . . . 3 . Misfires 1 | . . 1 . . Alerts 1 | . . 1 . . Overload Shots . | . . . . . Overflow Damage 309 | . 87 . 1 221 Projectiles . | . . . . . Explosions 1 | . . . 1 . Melee 308 | . 87 . . 221 Knockbacks . | . . . . . Impact . | . . . . . Kinetic . | . . . . . Secondary . | . . . . . Self-Inflicted Damage 37 | . . 1 36 . Shots 2 | . . . 2 . Rammed 1 | . . 1 . . Targets Rammed 1 | . . 1 . . Kicked . | . . . . . Crushed . | . . . . . Highest Temperature 227 | 130 1 204 227 74 Average Temperature 49 | 57 1 117 109 21 Received Heat Transfer 702 | . 51 . 156 495 Siege Activations . | . . . . . Martial Activations . | . . . . . Shielding Activations . | . . . . . Robots Disrupted . | . . . . . Combat Hostiles . | . . . . . Robots Corrupted . | . . . . . Combat Hostiles . | . . . . . Parts Fried . | . . . . . Impact Corruptions 1 | . 1 . . . Robots Melted . | . . . . . Combat Hostiles . | . . . . . Parts Melted . | . . . . . Heat Transferred 481 | 481 . . . . Parts Sabotaged . | . . . . . Parts Stolen . | . . . . . Parts Stripped . | . . . . . Power Chain Reactions . | . . . . . Alert | -11 -10 -10 -10 -8 ------- Run | Yrd Mat Min Sub Mat Maximum Alert Level 1 | . . . . 1 Low Security (%) 96 | 100 100 100 . 92 Level 1 3 | . . . . 7 Level 2 . | . . . . . Level 3 . | . . . . . Level 4 . | . . . . . Level 5 . | . . . . . High Security . | . . . . . Max Security . | . . . . . Peak Influence 238 | 10 132 146 . 238 Initial 44 | . . 1 . 44 Average 69 | 1 52 59 . 89 Influence Increases 1669 | 20 307 326 295 721 Destroy 0b10 Robot/C 900 | . 180 200 100 420 Destroy 0b10 Robot/NC 110 | 20 25 15 . 50 Destroy Leader 186 | . 48 40 . 98 Allied During Kill 26 | . . 26 . . Successful Hack 50 | . 15 . . 35 Disable Machine 30 | . 30 . . . Destroy Structure 37 | . 9 . . 28 Lose Combat Pursuer 330 | . . 45 195 90 Influence Decreases 1669 | 20 303 315 223 808 Entered New Map 54 | . . 3 8 43 Time Decay 1321 | 20 303 252 215 531 Lost Ally 60 | . . 60 . . Purge Threat 234 | . . . . 234 Squads Dispatched 4 | . 1 . . 3 Investigation 2 | . . . . 2 Extermination . | . . . . . Reinforcement 2 | . 1 . . 1 Assault . | . . . . . Garrison . | . . . . . Intercept . | . . . . . Searches Triggered . | . . . . . Construction Impeded . | . . . . . Haulers Reinforced . | . . . . . Active Scanning Responses . | . . . . . Cargo Convoy Interrupts . | . . . . . Stealth | -11 -10 -10 -10 -8 --------- Run | Yrd Mat Min Sub Mat Distress Signals 5 | . 3 . . 2 Communications Jammed . | . . . . . Distress Signals . | . . . . . Times Spotted 79 | . 16 10 15 38 Peak Tracking Total 6 | . 6 3 4 4 Tactical Retreats 11 | . . 2 5 4 Traps | -11 -10 -10 -10 -8 ------- Run | Yrd Mat Min Sub Mat Traps Triggered 3 | . 1 . . 2 Indirectly . | . . . . . Trap Hack Attempts . | . . . . . Triggered . | . . . . . Disarmed . | . . . . . Reprogrammed . | . . . . . Reused . | . . . . . Traps Extracted . | . . . . . Installed . | . . . . . Triggered . | . . . . . Machines | -11 -10 -10 -10 -8 ---------- Run | Yrd Mat Min Sub Mat Machines Disabled 5 | . 2 . 3 . Max in Single Turn 3 | . 1 . 3 . Garrison Access 1 | . . . . 1 Machines Repaired . | . . . . . Machines Dismantled . | . . . . . Machines Sabotaged . | . . . . . Overloaded Fab Kills . | . . . . . Hacking | -11 -10 -10 -10 -8 --------- Run | Yrd Mat Min Sub Mat Machines Accessed 22 | . 9 1 . 12 Terminals 14 | . 6 . . 8 Fabricators . | . . . . . Repair Stations 2 | . 1 . . 1 Recycling Units 3 | . 2 . . 1 Scanalyzers 1 | . . . . 1 Garrison Access 1 | . . . . 1 Total Hacks 75 | . 21 1 . 53 Successful 38 | . 12 1 . 25 Failed 36 | . 8 . . 28 Catastrophic 1 | . . . . 1 Database Lockouts 1 | . 1 . . . Manual 23 | . 9 . . 14 Terminals 57 | . 17 . . 40 Fabricators . | . . . . . Repair Stations 5 | . 2 . . 3 Recycling Units 5 | . 2 . . 3 Scanalyzers 3 | . . . . 3 Garrison Access 4 | . . . . 4 Terminal Hacks 24 | . 6 1 . 17 Robot Analysis 2 | . 1 . . 1 Prototype ID Bank 6 | . 1 . . 5 Open Door 1 | . . 1 . . Level Access Points 1 | . . . . 1 Branch Access Points 1 | . . . . 1 Terminal Index 1 | . . . . 1 Unreport Threat 3 | . . . . 3 Locate Traps 5 | . 3 . . 2 Dispatch Records 1 | . 1 . . . Hauler Manifests 1 | . . . . 1 Registered Components 1 | . . . . 1 Registered Prototypes 1 | . . . . 1 Fabricator Hacks . | . . . . . Repair Station Hacks 3 | . 2 . . 1 Scan Component 2 | . 1 . . 1 Repair 1 | . 1 . . . Recycling Unit Hacks 3 | . 2 . . 1 Retrieve Components 3 | . 2 . . 1 Scanalyzer 2 | . . . . 2 Insert Component 1 | . . . . 1 Analyze 1 | . . . . 1 Garrison Access Hacks 1 | . . . . 1 Seal Access 1 | . . . . 1 Unauthorized Hacks 5 | . 2 . . 3 Terminals 5 | . 2 . . 3 Botnet 5 | . 2 . . 3 Fabricators . | . . . . . Repair Stations . | . . . . . Recycling Units . | . . . . . Scanalyzers . | . . . . . Garrison Access . | . . . . . Data Cores Recovered . | . . . . . Used . | . . . . . Hacking Detections 18 | . 8 . . 10 Full Trace Events . | . . . . . Feedback Events . | . . . . . Feedback Blocked . | . . . . . Robot Schematics Acquired . | . . . . . Robots Built . | . . . . . Authchips . | . . . . . Time . | . . . . . Total Robot Build Rating . | . . . . . Part Schematics Acquired . | . . . . . Parts Built . | . . . . . Authchips . | . . . . . Time . | . . . . . Total Part Build Rating . | . . . . . Parts Repaired 1 | . 1 . . . Time 32 | . 32 . . . Parts Recycled . | . . . . . Recycled Matter . | . . . . . Retrieved Matter . | . . . . . Retrieved Components 17 | . 7 . . 10 Parts Scanalyzed 1 | . . . . 1 Part Schematics Acquired . | . . . . . Parts Damaged . | . . . . . Bothacking | -11 -10 -10 -10 -8 ------------ Run | Yrd Mat Min Sub Mat Used RIF Installer . | . . . . . Robots Hacked . | . . . . . Non-combat . | . . . . . Combat . | . . . . . Robot Hacks Applied . | . . . . . Relay Couplers Released . | . . . . . Fabnet Peak Effective % . | . . . . . Robots Rewired . | . . . . . Allies Hacked . | . . . . . Hacks Repelled . | . . . . . Allies | -11 -10 -10 -10 -8 -------- Run | Yrd Mat Min Sub Mat Total Allies 3 | . . 3 . . Largest Group 3 | . . 3 . . Highest-Rated Group 40 | . . 40 . . Highest-Rated Ally 16 | . . 16 . . Total Orders 2 | . . 2 . . STAY 1 | . . 1 . . FOLLOW 1 | . . 1 . . Ally Attacks 31 | . . 31 . . Total Damage 260 | . . 260 . . Kills 4 | . . 4 . . Allies Corrupted . | . . . . . Allies Melted . | . . . . . Intel | -11 -10 -10 -10 -8 ------- Run | Yrd Mat Min Sub Mat Active Infowar (turns) 3563 | 36 637 716 654 1520 Optics 1346 | . . . . 1346 Structural 33 | . 14 . . 19 Seismic 3055 | 36 623 716 654 1026 Robot Analysis Total 2 | . 1 . . 1 Derelict Logs Recovered 4 | . . 3 1 . Drone Launches . | . . . . . Drone Recoveries . | . . . . . Exploration | -11 -10 -10 -10 -8 ------------- Run | Yrd Mat Min Sub Mat Turns Passed 4696 | 117 1025 737 1191 1626 Spaces Moved 2818 | 25 662 588 808 735 Core 4 | . . . . 4 Treads 797 | . . . 282 515 Legs 22 | 22 . . . . Wheels 1995 | 3 662 588 526 216 Hover . | . . . . . Flight . | . . . . . Fastest Speed 95 | 95 95 110 110 125 Average Speed 129 | 117 114 110 130 158 Slowest Speed 650 | 120 140 110 160 650 Overloaded Moves . | . . . . . Propulsion Burnouts . | . . . . . Robots Hopped . | . . . . . Potential Cave-ins . | . . . . . Cave-ins Triggered . | . . . . . Exploration Rate (%) 62 | 2 92 96 53 67 Regions Visited 4 Branch Regions 2 Pre-discovered Areas 1 | . . 1 . . Known Exits Taken 1 | . 1 . . . Unknown Exits Taken 3 | 1 . 1 1 . Scrap Searched 1 | . . 1 . . Spaces Dug 14 | . 9 . . 5 Terrain Destroyed 127 | . 9 . 95 23 Melee 14 | . 9 . . 5 Projectile . | . . . . . AOE 113 | . . . 95 18 Terrain Rammed . | . . . . . Walls Destroyed . | . . . . . Machines Disabled . | . . . . . Actions | -11 -10 -10 -10 -8 --------- Run | Yrd Mat Min Sub Mat Total 3462 | 87 827 635 880 1033 Wait 245 | 43 57 13 14 118 Move 2814 | 24 661 587 807 735 Hop . | . . . . . Pick Up 39 | 2 16 5 . 16 Fast Attach 5 | 1 3 . 1 . Attach 7 | . . 1 . 6 Detach . | . . . . . Swap 70 | 1 19 2 20 28 Drop 41 | 2 12 4 2 21 Fire 170 | 14 39 22 20 75 Melee 70 | . 20 . 16 34 Ram 1 | . . 1 . . Kick . | . . . . . Crush . | . . . . . Escape Stasis . | . . . . . Rewire . | . . . . . Trap . | . . . . . Miscellaneous . | . . . . . Route ------- -11/Scrapyard -10/Materials (discovered 5 exits: *Mat x3 / *Min x2) -10/Mines (discovered 3 exits: *Mat x2 / [*Sub]) -10/Subcaves (discovered 3 exits: *Mat x2 / [*Rec]) -8/Materials (discovered 3 exits: *Fac x3) History --------- Turn | Location | Event 15 | -11/Scrapyard | Discovered new exit (range 3) 118 | -11/Scrapyard | Entered Materials 272 | -10/Materials | Discovered new exit (range 7) 309 | -10/Materials | Central database locked down 313 | -10/Materials | Build established: Mutant 314 | -10/Materials | Discovered new exit (range 15) 428 | -10/Materials | Discovered new exit (range 15) 521 | -10/Materials | Discovered new exit (range 16) 842 | -10/Materials | Repaired Hvy. Assault Rifle 932 | -10/Materials | Discovered new exit (range 10) 1063 | -10/Materials | Identified exit to Materials 1140 | -10/Materials | Identified exit to Mines 1143 | -10/Materials | Entered Mines 1148 | -10/Mines | Assisted by bots powering up and referring to "LRC-V3" 1175 | -10/Mines | Met a Derelict who couldn't figure out how to use a Trap Extractor 1230 | -10/Mines | Learned Materials security intel 1288 | -10/Mines | Discovered exit to Materials (range 10) 1364 | -10/Mines | Discovered exit to Materials (range 16) 1424 | -10/Mines | Received a Rocket Launcher from a helpful Derelict 1438 | -10/Mines | Learned location of Storage (-7) 1451 | -10/Mines | Found a damaged Exp. Sensor Array with a note attached 1455 | -10/Mines | Found Prototype Device 1523 | -10/Mines | Learned Materials stockpile data 1552 | -10/Mines | Discovered new exit (range 4) 1880 | -10/Mines | Entered Subcaves 1891 | -10/Subcaves | Ambushed by Subdwellers from Twisted Machinery 2010 | -10/Subcaves | Shifting Twisted Machinery released Riot Gun 2021 | -10/Subcaves | Learned 4 Materials zone layouts 2039 | -10/Subcaves | Discovered new exit (range 10) 2049 | -10/Subcaves | Shifting Twisted Machinery released Sub. Machine Gun 2471 | -10/Subcaves | A swath of the cavern ceiling suddenly collapsed 2575 | -10/Subcaves | Discovered new exit (range 13) 3057 | -10/Subcaves | Discovered new exit (range 7) 3065 | -10/Subcaves | A Subdweller sparked back to life 3065 | -10/Subcaves | A Subdweller sparked back to life 3065 | -10/Subcaves | A Subdweller sparked back to life 3071 | -10/Subcaves | Entered Materials 3071 | -8/Materials | Evolved 4 slots: Propulsion x1, Utility x3 3224 | -8/Materials | Identified exit to Factory 3345 | -8/Materials | Identified Exp. Sensor Array 3381 | -8/Materials | Build established: Hacker-Mutant 4697 | -8/Materials | Self-destructed Last Messages --------------- (Destroy). 04540_ Y-45 Defender destroyed. 04545_ Acquired 54 matter. 04570_ Connecting with Terminal... >>Alert(Purge) Purged threat record, alert level lowered. >>Prototypes Downloading prototype IDs... Imp. Medium Laser Impact Mace >>Alert(Purge) Purged threat record, alert level lowered. >>Alert(Purge) No threats on record. 04577_ Triggered Alarm Trap. 04577_ An alarm sounds. 04577_ ALERT: Alarm triggered, dispatching investigation squad. 04665_ Acquired Lgt. Deuterium Engine. 04668_ Connecting with Terminal... Map ----- +----------------------------------------------------+ | ########?# ! # #????????????????? | | "## #?? # #????????????????? | | T## #???""""""" # #????????????????? | | "## " #???""""""" + #????????#???????? | | ## """#???""""""" # #?????? #???????? | | +### """#???""""""" # #????" #???????? | | # """#???""""""" # #?? #???????? | | + "" #??########"# # #???????? | | # """#??# + + #???????? | | # # ""#??# # #########????????? | | # # """#??# # ## #?????????? | | + # " #??# ]] # #?????????? | | #### #??# ]* # T #?????????? | | #??#######??# # #?????????? | | #???????????# ###### #?????????? | | #???????????# #????## ##?????????? | | #???????????# #?????# #??????????? | | ????????????##########?????# #??????????? | | ???????????????????????????# #??????????? | | ???????????????????????????# #??????????? | | ???????????????????????????# #??????????? | | ???????????????????????????# #???*??????? | | ???????????????????????????# +??????????? | | ???????????????????????????# #??????????? | | ?????????????????#+#+####### #??????????? | | ?????????????????# !!@ #??????????? | | ?????????????????+ !!! ""#????????? | | ?????????????????# !!! T"#????????? | | ?????????????????# ""#????????? | | ?????????????????# * ###????????? | | ?????????????????# [[ !a ?????????? | | ####?????????????# [] ????????? | | ####?????????????+ ???????? | | ##?????????????# """ #####??????? | | ##?????????????# R" #??????????? | | ##?????????????# """ #??????????? | | ##?????????????+ #??????????? | | ##?????????????# #??????????? | | ##?????????????####### ### #??????????? | | ##???????????????????# ??? #??????????? | | ##???????????????????# ???? #??????????? | | ##??????????????????? ???? #??????????? | | ####??????????????????? T???? +??????????? | | ####??????????????????? ????H #??????????? | | ?????????????????????????????? ???????????? | | ??????????????????????????????????????????? | | ??????????????????????????????????????????? | | ??????????????????????????????????????????? | | ??????????????????????????????????????????? | | ??????????????????????????????????????????? | +----------------------------------------------------+ Best States ------------- Heat Dissipation 31 Energy Generation 15 Energy Capacity 275 Matter Stores 300 Matter Capacity 300 Sight Range 20 Terrain Scan Density 10 Armor Coverage 150 Utility Shielding 33 Evasion (%) 45 Recoil Reduction 3 Offensive Hacking 10 Defensive Hacking 10 Item Schematics ----------------- None Robot Schematics ------------------ None Fabricated ------------ Nothing Repaired ---------- Hvy. Assault Rifle | 62% | -10/Materials Alien Tech Used ----------------- None Achievements -------------- None Challenges ------------ None Game ------ Seed CatalystTachyonRipteeth Manual? 0 Play Time 00:53:05 Cumulative 59.5 hours Start 2025.07.18 @ 12:12:19 End 2025.07.18 @ 13:03:57 Sessions 1 Manual Loads 0 Difficulty Rogue Special Mode None Game No. 42 Rogue 42 Adventurer 0 Explorer 0 Win Type - Total 2 Types 2/0/0/0/0/0/0/0/0/0 Lore% 28 Gallery% 30 Achievement% 30 Wizard Run 0 Options --------- Layout 2 ASCII 0 Keyboard 0 Movement Numpad Keybinds 0 Fullscreen 1 Font 32/SmallcapsGlow Map View 50x44 Zoom Use 0% Tactical HUD 1 Map Filters NONE Filters NONE Steam 1 RUN: 839cd9df-9e73-4886-8f4f-be3924de057e